bitfinex/quotes_SOLUSD_20240921
["timestamp","ask_amount","ask_price","bid_price","bid_amount"]
[1726897572888,0.1606942,145.99,145.94,20.0]
[1726897578702,0.1606942,145.99,145.95,1.37019305]
[1726897579516,0.1606942,145.99,145.95,23.776884]
[1726897584398,0.1606942,145.99,145.94,20.0]
[1726897584604,0.1606942,145.99,145.9,22.2922]
[1726897584605,0.1606942,145.99,145.91,32.7213812]
[1726897584826,0.1606942,145.99,145.94,23.776884]
[1726897585118,15.2095,145.98,145.94,23.776884]
[1726897587219,15.2095,145.98,145.89,12.7213812]
[1726897587426,15.2095,145.98,145.9,43.776884]
[1726897588000,15.2095,145.94,145.88,0.0888669]
[1726897590417,15.2095,145.94,145.88,20.0888669]
[1726897595931,15.2095,145.94,145.89,23.776884]
[1726897596117,15.2095,145.94,145.89,25.14764473]
[1726897596305,15.2095,145.94,145.89,23.776884]
[1726897598230,15.2095,145.94,145.88,0.0888669]
[1726897598527,15.2095,145.94,145.88,20.0888669]
[1726897600528,0.12549,145.93,145.88,20.0888669]
[1726897611847,22.35434865,145.94,145.89,1.37081023]
[1726897612053,22.35434865,145.94,145.89,23.776884]
[1726897612259,15.2095,145.94,145.89,23.776884]
[1726897612752,0.12549,145.93,145.88,0.0888669]
[1726897621075,0.25098,145.93,145.88,0.0888669]
[1726897621248,23.50348,145.91,145.88,0.0888669]
[1726897621448,16.64998,145.91,145.88,0.0888669]
[1726897622775,23.79629074,145.91,145.88,0.0888669]
[1726897627483,23.67080074,145.91,145.88,0.0888669]
[1726897661320,8.04245815,145.94,145.88,0.0888669]
[1726897661321,20.25098,145.93,145.88,0.0888669]
[1726897663507,27.10358,145.93,145.88,0.0888669]
[1726897671332,16.26868,145.91,145.88,0.0888669]
[1726897690840,7.14962859,145.92,145.88,0.0888669]
[1726897691043,0.12549,145.92,145.88,0.0888669]
[1726897691556,0.12549,145.93,145.88,0.0888669]
[1726897695873,7.14734283,145.94,145.88,1.45965013]
[1726897696041,7.14734283,145.94,145.88,0.0888669]
[1726897705471,7.14734283,145.94,145.89,23.776884]
[1726897705773,7.14734283,145.94,145.89,36.4982652]
[1726897706348,7.14734283,145.94,145.9,12.7213812]
[1726897709667,15.5635,145.95,145.9,12.7213812]
[1726897709842,36.52508,145.98,145.91,1.37052238]
[1726897710047,43.68434646,145.98,145.91,1.37052238]
[1726897711174,43.68434646,145.98,145.9,12.7213812]
[1726897711344,43.68434646,145.98,145.89,36.4982652]
[1726897716182,43.68434646,145.98,145.9,12.7213812]
[1726897716565,43.68434646,145.98,145.91,23.776884]
[1726897717669,43.68434646,145.98,145.9,23.776884]
[1726897722954,43.68434646,145.98,145.9,36.4982652]
[1726897725888,43.68434646,145.98,145.9,23.776884]
[1726897726377,27.41024646,145.98,145.88,0.0888669]
[1726897726688,0.25098,145.96,145.88,0.0888669]
[1726897727482,7.41142673,145.96,145.88,0.0888669]
[1726897728081,7.41142673,145.96,145.89,20.0]
[1726897731393,7.41142673,145.96,145.89,21.37067367]
[1726897731863,7.41142673,145.96,145.9,23.776884]
[1726897735569,7.28593673,145.96,145.9,23.776884]
[1726897736296,7.28593673,145.96,145.9,37.86882477]
[1726897736488,7.16044673,145.96,145.91,12.7213812]
[1726897736689,7.16044673,145.96,145.92,1.37043394]
[1726897737806,7.16044673,145.96,145.91,12.7213812]
[1726897738004,7.16044673,145.96,145.9,36.4982652]
[1726897738180,7.16044673,145.96,145.9,23.776884]
[1726897756008,7.16044673,145.96,145.91,1.37054465]
[1726897756216,16.636,145.97,145.92,23.776884]
[1726897756414,16.636,145.97,145.9,12.7213812]
[1726897756598,16.636,145.97,145.91,23.776884]
[1726897759323,16.636,145.97,145.92,1.37038443]
[1726897759817,16.636,145.97,145.93,23.776884]
[1726897786348,16.636,145.97,145.88,0.0888669]
[1726897786520,0.12549,145.96,145.88,0.0888669]
[1726897786727,0.12549,145.96,145.89,20.0]
[1726897788048,0.12549,145.96,145.91,20.0]
[1726897790847,0.12549,145.96,145.89,23.776884]
[1726897791348,0.12549,145.96,145.9,20.0]
[1726897804252,0.12549,145.96,145.91,23.776884]
[1726897804451,23.7955751,145.97,145.91,23.776884]
[1726897810742,23.7955751,145.97,145.92,32.7213812]
[1726897810954,23.7955751,145.97,145.93,36.4982652]
[1726897811154,16.636,145.97,145.94,1.37021814]
[1726897815062,0.1606942,145.99,145.95,36.4982652]
[1726897815646,0.1606942,145.99,145.95,23.776884]
[1726897822245,0.1606942,145.99,145.95,25.14697297]
[1726897822970,0.1606942,145.99,145.95,37.86835417]
[1726897823748,0.1606942,145.99,145.95,36.4982652]
[1726897827880,0.1606942,145.99,145.95,20.0]
[1726897828351,0.1606942,145.99,145.94,20.0]
[1726897828977,0.1606942,145.99,145.95,23.776884]
[1726897829161,0.1606942,145.99,145.94,20.0]
[1726897829477,0.25098,145.98,145.89,29.1981812]
[1726897829653,16.0637,145.97,145.89,12.7213812]
[1726897830880,16.0637,145.97,145.91,23.776884]
[1726897831383,16.0637,145.97,145.92,20.0]
[1726897831888,16.0637,145.97,145.91,23.776884]
[1726897836356,0.12549,145.96,145.9,20.0]
[1726897836561,0.25098,145.96,145.82,7.78699894]
[1726897836762,7.10248,145.96,145.85,12.7213812]
[1726897838184,7.10248,145.96,145.86,12.7213812]
[1726897838487,7.10248,145.96,145.87,20.0]
[1726897841281,0.12549,145.94,145.87,20.0]
[1726897841467,27.10218,145.96,145.87,20.0]
[1726897843775,0.25098,145.94,145.83,20.0]
[1726897843965,15.7591,145.93,145.85,20.0]
[1726897851694,0.12549,145.92,145.85,20.0]
[1726897855508,0.12549,145.92,145.85,12.7213812]
[1726897855809,15.7591,145.93,145.87,23.776884]
[1726897856117,15.7591,145.93,145.87,36.4982652]
[1726897858912,15.7591,145.93,145.87,23.776884]
[1726897866514,0.12549,145.92,145.83,32.7213812]
[1726897867528,0.12549,145.92,145.83,20.0]
[1726897867704,0.12549,145.92,145.85,20.0]
[1726897868803,0.25098,145.92,145.83,32.7213812]
[1726897869725,0.25098,145.92,145.83,20.0]
[1726897870801,0.25098,145.92,145.82,20.31504]
[1726897871231,0.25098,145.92,145.82,33.0364212]
[1726897874124,7.10438,145.92,145.82,20.31504]
[1726897874339,0.25098,145.92,145.82,33.0364212]
[1726897874916,7.10408,145.92,145.82,20.31504]
[1726897875118,16.0149,145.91,145.82,20.31504]
[1726897875334,0.25098,145.9,145.82,20.31504]
[1726897875835,16.0149,145.91,145.82,0.31504]
[1726897875836,6.32558,145.89,145.82,0.31504]
[1726897876337,66.117364,145.89,145.82,0.31504]
[1726897876519,72.971764,145.89,145.82,0.31504]
[1726897876824,74.16440313,145.89,145.82,0.31504]
[1726897877731,42.34048,145.89,145.82,0.31504]
[1726897878034,22.34048,145.89,145.82,0.31504]
[1726897878534,42.34048,145.89,145.82,0.31504]
[1726897880612,49.50487851,145.89,145.82,0.31504]
[1726897881239,80.13616251,145.89,145.82,0.31504]
[1726897887133,43.43027851,145.89,145.82,0.31504]
[1726897887330,43.30478851,145.89,145.82,0.31504]
[1726897889047,43.43027851,145.89,145.82,0.31504]
[1726897897213,7.41537851,145.89,145.82,0.31504]
[1726897897548,17.1304,145.94,145.85,12.7213812]
[1726897897549,6.8521,145.94,145.85,12.7213812]
[1726897897721,6.8517,145.95,145.86,1.37099891]
[1726897897919,7.16207765,145.94,145.86,1.37099891]
[1726897898133,7.16207765,145.94,145.84,32.7213812]
[1726897898134,14.01417765,145.94,145.84,32.7213812]
[1726897898335,6.8526,145.93,145.83,20.0]
[1726897898732,0.25098,145.91,145.83,20.0]
[1726897908354,7.41380724,145.91,145.83,20.0]
[1726897908654,14.26740724,145.91,145.83,20.0]
[1726897908861,14.26740724,145.91,145.82,6.95444]
[1726897916957,7.16282724,145.91,145.85,15.0209]
[1726897918242,0.12549,145.9,145.85,15.0209]
[1726897918443,0.25098,145.9,145.85,15.0209]
[1726897921168,0.12549,145.9,145.85,15.0209]
[1726897921464,0.25098,145.9,145.85,15.0209]
[1726897925667,0.12549,145.9,145.85,15.0209]
[1726897925981,7.16282724,145.91,145.87,6.6474]
[1726897926159,20.0,145.95,145.87,6.6474]
[1726897926360,7.1619982,145.93,145.87,6.6474]
[1726897926584,20.0,145.92,145.87,6.6474]
[1726897927483,0.12549,145.91,145.87,6.6474]
[1726897929757,7.2874882,145.93,145.87,8.01832018]
[1726897929962,0.12549,145.92,145.87,8.01832018]
[1726897930559,7.1619982,145.93,145.88,36.5871321]
[1726897930751,6.851,145.97,145.89,15.0209]
[1726897931072,7.16043618,145.96,145.89,15.0209]
[1726897931673,14.01163618,145.96,145.89,15.0209]
[1726897931861,0.25098,145.94,145.89,15.0209]
[1726897935076,0.25098,145.93,145.89,15.0209]
[1726897935284,0.25098,145.93,145.88,0.0888669]
[1726897941573,7.41293608,145.93,145.88,0.0888669]
[1726897946590,14.26553608,145.93,145.88,0.0888669]
[1726897950291,14.26553608,145.93,145.86,15.5859669]
[1726897961014,14.26553608,145.93,145.84,43.776884]
[1726897967109,7.41293608,145.93,145.84,56.4982652]
[1726897967314,7.41293608,145.93,145.85,12.7213812]
[1726897967612,7.41293608,145.93,145.86,23.776884]
[1726897970691,7.41293608,145.93,145.85,23.776884]
[1726897984711,7.41293608,145.93,145.85,12.7213812]
[1726897985112,7.41293608,145.93,145.86,23.776884]
[1726897986049,7.28744608,145.93,145.86,23.776884]
[1726897986209,7.28744608,145.93,145.87,1.37078574]
[1726897988744,7.28744608,145.93,145.86,36.4982652]
[1726897989225,20.12549,145.94,145.86,36.4982652]
[1726897990451,20.12549,145.94,145.87,1.37079591]
[1726897991068,20.12549,145.94,145.86,36.4982652]
[1726897991223,20.12549,145.94,145.86,23.776884]
[1726897992052,26.97759,145.94,145.86,23.776884]
[1726897992624,6.97759,145.94,145.86,23.776884]
[1726897993558,0.12549,145.92,145.86,23.776884]
[1726897993725,0.12549,145.92,145.85,23.776884]
[1726897994433,0.12549,145.92,145.86,23.776884]
[1726897996063,0.12549,145.93,145.87,1.37085359]
[1726897996874,0.12549,145.93,145.86,36.4982652]
[1726897999783,0.12549,145.93,145.86,23.776884]
[1726898003982,0.25098,145.93,145.86,23.776884]
[1726898006686,7.10368,145.93,145.86,23.776884]
[1726898007457,7.1604078,145.92,145.86,23.776884]
[1726898007883,7.10368,145.93,145.86,23.776884]
[1726898017098,0.25098,145.93,145.86,23.776884]
[1726898020497,0.25098,145.93,145.86,25.14778633]
[1726898020804,0.25098,145.93,145.87,1.3709013]
[1726898020992,7.16027262,145.94,145.9,12.7213812]
[1726898021197,15.4708,145.95,145.91,12.7213812]
[1726898023181,15.4708,145.95,145.9,12.7213812]
[1726898023481,15.4708,145.95,145.91,23.776884]
[1726898038023,15.4708,145.95,145.9,23.776884]
[1726898041121,15.4708,145.95,145.91,12.7213812]
[1726898041324,15.4708,145.95,145.92,23.776884]
[1726898047324,15.4708,145.95,145.92,25.14729485]
[1726898048600,15.4708,145.95,145.92,23.776884]
[1726898052704,7.15751486,145.98,145.94,12.7213812]
[1726898052907,16.0961611,145.99,145.87,22.28199]
[1726898052908,16.0961611,145.99,145.97,12.7213812]
[1726898053123,0.2495611,145.99,145.98,23.776884]
[1726898054218,0.2495611,145.99,145.96,12.7213812]
[1726898054425,0.2495611,145.99,145.96,23.776884]
[1726898057541,0.2495611,145.99,145.96,36.4982652]
[1726898059747,0.2495611,145.99,145.97,1.36992748]
[1726898062048,0.2495611,145.99,145.96,36.4982652]
[1726898062545,0.2495611,145.99,145.97,14.09126186]
[1726898062919,0.2495611,145.99,145.98,23.776884]
[1726898064922,0.2495611,145.99,145.97,23.776884]
[1726898067038,0.2495611,145.99,145.97,25.14674454]
[1726898067527,0.2495611,145.99,145.97,23.776884]
[1726898068843,0.2495611,145.99,145.97,37.86812531]
[1726898069147,0.2495611,145.99,145.98,12.7213812]
[1726898069535,0.2495611,145.99,145.98,36.4982652]
[1726898069736,0.2495611,145.99,145.98,23.776884]
[1726898069931,0.2495611,145.99,145.97,23.776884]
[1726898070652,0.2495611,145.99,145.96,23.776884]
[1726898080541,0.2495611,145.99,145.96,36.4982652]
[1726898081659,0.2495611,145.99,145.96,23.776884]
[1726898081846,0.2495611,145.99,145.96,36.4982652]
[1726898085177,0.2495611,145.99,145.98,12.7213812]
[1726898085341,0.2495611,145.99,145.98,36.4982652]
[1726898091950,0.2495611,145.99,145.98,56.4982652]
[1726898095149,0.2495611,145.99,145.98,57.86775527]
[1726898097853,0.2495611,145.99,145.98,56.4982652]
[1726898100175,0.2495611,145.99,145.98,57.86779525]
[1726898101381,0.2495611,145.99,145.98,56.4982652]
[1726898101959,0.2495611,145.99,145.98,43.776884]
[1726898102160,0.2495611,145.99,145.98,56.4982652]
[1726898102884,0.2495611,145.99,145.98,43.776884]
[1726898109690,0.2495611,145.99,145.95,20.0]
[1726898110967,0.2495611,145.99,145.97,20.0]
[1726898115507,0.2495611,145.99,145.98,25.14675252]
[1726898116394,0.2495611,145.99,145.98,36.4982652]
[1726898117591,0.2495611,145.99,145.98,23.776884]
[1726898118103,0.2495611,145.99,145.93,12.7213812]
[1726898118775,0.2495611,145.99,145.94,12.7213812]
[1726898119199,0.2495611,145.99,145.93,12.7213812]
[1726898119406,0.2495611,145.99,145.94,20.0]
[1726898120498,0.2495611,145.99,145.95,23.776884]
[1726898120682,0.2495611,145.99,145.95,25.14693463]
[1726898121086,0.2495611,145.99,145.95,23.776884]
[1726898123708,0.2495611,145.99,145.95,36.4982652]
[1726898128310,0.2495611,145.99,145.95,23.776884]
[1726898141432,15.8894,145.98,145.89,32.7213812]
[1726898141928,22.0964,145.98,145.89,12.7213812]
[1726898142323,0.12549,145.97,145.89,12.7213812]
[1726898143314,0.12549,145.97,145.9,20.0]
[1726898143635,0.12549,145.97,145.91,23.776884]
[1726898144127,0.12549,145.97,145.92,1.37037829]
[1726898144735,0.12549,145.97,145.91,23.776884]
[1726898144935,22.0964,145.98,145.93,23.776884]
[1726898145163,22.0964,145.98,145.93,36.4982652]
[1726898146562,22.0964,145.98,145.93,23.776884]
[1726898147034,22.0964,145.98,145.91,12.7213812]
[1726898147035,22.0964,145.98,145.92,43.776884]
[1726898151743,22.0964,145.98,145.92,56.4982652]
[1726898152666,15.8894,145.98,145.94,36.4982652]
[1726898152959,15.8894,145.98,145.96,23.776884]
[1726898156669,15.8894,145.98,145.95,23.776884]
[1726898164084,0.2495611,145.99,145.96,14.09137269]
[1726898164257,0.2495611,145.99,145.97,36.4982652]
[1726898164460,0.2495611,145.99,145.98,23.776884]
[1726898164970,0.2495611,145.99,145.98,36.4982652]
[1726898168971,0.2495611,145.99,145.98,56.4982652]
[1726898171891,0.2495611,145.99,145.98,56.7492452]
[1726898174894,0.2495611,145.99,145.98,58.81779859]
[1726898175913,0.2495611,146.03,145.99,44.027864]
[1726898176118,0.2495611,146.03,146.02,56.4982652]
[1726898176584,0.2495611,146.03,146.02,56.7492452]
[1726898177180,0.2495611,146.03,146.02,56.4982652]
[1726898177401,0.2495611,146.03,146.02,43.776884]
[1726898178286,0.2495611,146.03,146.02,56.4982652]
[1726898178488,0.2495611,146.03,146.02,56.6237552]
[1726898179012,0.2495611,146.03,146.02,56.7492452]
[1726898191226,0.2495611,146.03,146.02,58.80066034]
[1726898197522,0.2495611,146.03,146.02,43.902374]
[1726898197730,0.2495611,146.03,146.02,56.4982652]
[1726898203957,0.2495611,146.03,146.02,56.7492452]
[1726898205851,0.2495611,146.03,146.02,58.11833156]
[1726898206428,0.2495611,146.03,146.02,56.7492452]
[1726898221532,0.2495611,146.03,146.02,56.4982652]
[1726898224559,0.2495611,146.03,146.02,56.7492452]
[1726898229862,0.2495611,146.03,146.02,20.0]
[1726898230068,0.2495611,146.03,145.94,7.23734715]
[1726898230268,0.2495611,146.03,145.98,12.7213812]
[1726898230746,0.2495611,146.03,145.94,7.23734715]
[1726898231059,0.2495611,146.03,145.98,12.7213812]
[1726898231762,0.2495611,146.03,145.96,0.12549]
[1726898232059,0.2495611,146.03,145.97,12.7213812]
[1726898232264,0.2495611,146.03,145.98,20.0]
[1726898232470,0.2495611,146.03,146.01,23.776884]
[1726898232760,0.2495611,146.03,146.0,20.0]
[1726898232967,0.2495611,146.03,146.01,23.776884]
[1726898238473,15.7972611,146.04,146.01,23.776884]
[1726898241685,15.7972611,146.04,145.94,6.0467]
[1726898241686,15.7972611,146.04,145.94,12.7213812]
[1726898241975,15.7972611,146.04,145.95,12.7213812]
[1726898242889,15.7972611,146.04,145.97,23.776884]
[1726898243183,15.7972611,146.04,145.99,23.776884]
[1726898244361,0.25098,146.03,145.98,20.0]
[1726898244567,0.12549,146.03,145.94,20.0]
[1726898244768,0.12549,146.03,145.94,32.7213812]
[1726898245269,6.69689,146.03,145.94,32.7213812]
[1726898245471,6.69689,146.03,145.94,20.0]
[1726898246086,6.69689,146.03,145.96,20.0]
[1726898246280,6.69689,146.03,145.97,23.776884]
[1726898246990,15.3681,146.02,145.92,20.2495611]
[1726898247177,15.3681,146.02,145.94,20.0]
[1726898248279,15.3681,146.02,145.95,23.776884]
[1726898248777,15.3681,146.02,145.97,23.776884]
[1726898251491,15.3681,146.02,145.98,1.37000696]
[1726898251679,15.3681,146.02,145.99,23.776884]
[1726898251881,15.3681,146.02,145.97,23.776884]
[1726898252077,15.3681,146.02,145.99,23.776884]
[1726898252281,22.5222905,146.06,146.01,23.776884]
[1726898252592,15.3681,146.06,146.01,23.776884]
[1726898258108,14.8681,146.06,146.01,23.776884]
[1726898261781,14.3681,146.06,146.01,23.776884]
[1726898264709,13.8681,146.06,146.01,23.776884]
[1726898303436,2.5900501,146.08,146.01,23.776884]
[1726898306453,19.1338501,146.08,146.01,23.776884]
[1726898319042,16.5438,146.08,146.01,23.776884]
[1726898325443,0.25098,146.09,146.01,23.776884]
[1726898325947,0.25098,146.09,146.01,39.208684]
[1726898332860,0.12549,146.09,146.03,23.776884]
[1726898345465,0.25098,146.09,146.02,6.1569]
[1726898364457,0.25098,146.09,146.01,15.4318]
[1726898367756,7.09608,146.09,145.99,20.0]
[1726898367957,7.09608,146.09,146.0,23.776884]
[1726898368158,7.09608,146.09,146.01,20.0]
[1726898370385,0.25098,146.09,146.02,23.776884]
[1726898389395,15.9326,146.08,146.01,20.0]
[1726898389602,0.25098,146.07,146.01,20.0]
[1726898392784,0.12549,146.07,146.02,23.776884]
[1726898403506,15.9326,146.08,146.02,23.776884]
[1726898405396,13.45856312,146.1,146.03,21.36948197]
[1726898405596,7.15286312,146.1,146.04,23.776884]
[1726898406891,0.25098,146.09,146.04,23.776884]
[1726898409821,0.12549,146.09,146.04,23.776884]
[1726898410516,0.25098,146.09,146.04,23.776884]
[1726898412420,0.25098,146.09,145.98,18.8437812]
[1726898412591,0.25098,146.07,145.99,20.0]
[1726898413923,0.25098,146.07,146.0,23.776884]
[1726898422423,0.12549,146.07,146.0,23.776884]
[1726898425206,0.25098,146.07,146.0,23.776884]
[1726898425928,0.12549,146.07,146.0,23.776884]
[1726898426115,0.12549,146.07,146.02,23.776884]
[1726898434432,0.25098,146.07,146.02,23.776884]
[1726898435322,0.25098,146.07,145.99,20.0]
[1726898435323,0.12549,146.03,145.96,0.2495611]
[1726898435523,0.25098,146.03,145.96,0.2495611]
[1726898438219,0.25098,146.03,145.96,20.2495611]
[1726898438413,0.25098,146.03,145.97,23.776884]
[1726898448218,0.12549,146.03,145.99,23.776884]
[1726898448426,0.12549,146.03,145.97,23.776884]
[1726898449148,0.12549,146.03,145.96,44.0264451]
[1726898471756,0.25098,146.03,145.96,44.0264451]
[1726898472142,0.25098,146.0,145.96,0.2495611]
[1726898473956,0.25098,145.98,145.96,0.2495611]
[1726898474260,6.21159,145.97,145.96,0.2495611]
[1726898475048,6.33708,145.97,145.96,0.2495611]
[1726898478562,15.4095,145.95,145.92,0.2495611]
[1726898478754,0.12549,145.94,145.92,0.2495611]
[1726898478949,0.25098,145.94,145.92,0.2495611]
[1726898481966,7.40435463,145.94,145.92,0.2495611]
[1726898482767,7.15337463,145.94,145.92,0.2495611]
[1726898483265,15.4095,145.95,145.92,0.2495611]
[1726898484266,6.0861,145.97,145.92,0.2495611]
[1726898485250,0.25098,145.96,145.92,0.2495611]
[1726898487262,0.25098,145.94,145.92,0.2495611]
[1726898491453,0.25098,145.92,145.88,0.2495611]
[1726898493755,0.12549,145.9,145.88,0.2495611]
[1726898494860,7.15425517,145.93,145.88,0.2495611]
[1726898495057,0.25098,145.92,145.88,0.2495611]
[1726898495259,0.12549,145.92,145.88,0.2495611]
[1726898500180,0.25098,145.93,145.88,0.2495611]
[1726898504366,0.25098,145.91,145.88,0.2495611]
[1726898505781,7.40596966,145.91,145.88,0.2495611]
[1726898507367,7.40596966,145.91,145.84,20.0]
[1726898507368,7.40596966,145.91,145.84,23.776884]
[1726898507689,0.25098,145.89,145.84,23.776884]
[1726898507982,0.25098,145.89,145.82,0.31504]
[1726898507983,7.10548,145.89,145.82,0.31504]
[1726898509358,0.25098,145.89,145.82,0.31504]
[1726898516391,0.25098,145.87,145.82,0.31504]
[1726898522584,0.12549,145.87,145.83,23.776884]
[1726898522776,7.15626059,145.88,145.83,23.776884]
[1726898522972,7.15626059,145.88,145.82,0.31504]
[1726898522973,15.5056,145.9,145.82,24.091924]
[1726898523370,22.66080175,145.9,145.82,24.091924]
[1726898525291,0.25098,145.89,145.82,0.31504]
[1726898531282,0.25098,145.89,145.83,23.776884]
[1726898531996,0.25098,145.89,145.82,44.091924]
[1726898539116,0.25098,145.89,145.82,24.091924]
[1726898542605,22.66080175,145.9,145.83,21.37119282]
[1726898542906,15.5056,145.9,145.84,36.4982652]
[1726898543090,15.5056,145.9,145.85,1.37103962]
[1726898543284,15.5056,145.9,145.86,23.776884]
[1726898543502,0.25098,145.92,145.86,23.776884]
[1726898543702,7.15402342,145.93,145.87,1.37101151]
[1726898543897,7.15402342,145.93,145.88,23.776884]
[1726898544892,0.12549,145.92,145.88,23.776884]
[1726898545109,0.25098,145.92,145.88,23.776884]
[1726898551608,0.12549,145.92,145.88,23.776884]
[1726898551817,7.15402342,145.93,145.88,23.776884]
[1726898571002,7.15402342,145.93,145.89,1.37078309]
[1726898571203,7.15402342,145.93,145.9,23.776884]
[1726898571408,21.9444,145.98,145.9,23.776884]
[1726898571724,29.09483774,145.98,145.9,23.776884]
[1726898572203,29.09483774,145.98,145.9,25.14746133]
[1726898572833,0.25098,145.97,145.9,25.14746133]
[1726898579816,8.53480943,145.94,145.9,25.14746133]
[1726898580024,22.28722471,145.93,145.9,25.14746133]
[1726898580229,22.28722471,145.92,145.9,25.14746133]
[1726898580431,8.5720095,145.91,145.9,25.14746133]
[1726898581009,0.25098,145.97,145.9,25.14746133]
[1726898581231,0.12549,145.95,145.9,25.14746133]
[1726898581424,22.1763111,145.94,145.9,23.776884]
[1726898581731,8.52935042,145.93,145.88,23.776884]
[1726898581926,0.12549,145.96,145.9,23.776884]
[1726898582632,0.12549,145.96,145.89,23.776884]
[1726898583016,0.12549,145.97,145.89,23.776884]
[1726898585415,0.25098,145.97,145.9,12.7213812]
[1726898585620,0.25098,145.97,145.91,25.14734324]
[1726898586520,0.12549,145.97,145.91,25.14734324]
[1726898586735,0.12549,145.97,145.91,37.86872444]
[1726898587036,21.99561774,145.98,145.91,37.86872444]
[1726898587425,21.99561774,145.98,145.91,36.4982652]
[1726898593017,7.15043774,145.98,145.91,36.4982652]
[1726898608660,0.12549,145.97,145.9,20.0]
[1726898610036,0.12549,145.97,145.91,23.776884]
[1726898614242,6.77592774,145.98,145.91,23.776884]
[1726898640488,6.77592774,145.98,145.95,59.1368652]
[1726898640782,0.2495611,145.99,145.97,23.776884]
[1726898640956,0.2495611,145.99,145.98,25.14670077]
[1726898641570,0.2495611,145.99,145.98,57.86808197]
[1726898641763,0.2495611,145.99,145.98,80.50668197]
[1726898641971,0.2495611,145.99,145.98,79.1368652]
[1726898643764,0.2495611,146.03,145.99,43.776884]
[1726898643978,0.2495611,146.03,146.02,79.1368652]
[1726898644269,0.2495611,146.03,146.02,67.91016734]
[1726898644486,0.2495611,146.03,146.02,79.2623552]
[1726898645174,0.2495611,146.03,146.02,66.415484]
[1726898645476,0.2495611,146.03,146.02,79.1368652]
[1726898647666,0.2495611,146.03,146.02,79.2623552]
[1726898647977,0.2495611,146.03,146.02,79.1368652]
[1726898650791,0.2495611,146.03,146.02,66.415484]
[1726898662594,0.2495611,146.03,146.02,79.1368652]
[1726898662893,0.2495611,146.03,146.02,80.50615702]
[1726898664809,0.2495611,146.03,146.02,79.1368652]
[1726898666273,0.2495611,146.03,146.02,79.2623552]
[1726898666474,0.2495611,146.03,146.02,79.3878452]
[1726898671799,0.2495611,146.03,146.02,80.7568059]
[1726898675910,0.2495611,146.03,146.02,79.3878452]
[1726898679491,0.2495611,146.03,146.02,80.75671334]
[1726898680906,0.2495611,146.03,146.02,79.3878452]
[1726898686899,0.2495611,146.03,146.02,80.75671774]
[1726898687711,0.2495611,146.03,146.02,79.3878452]
[1726898700316,0.2495611,146.03,146.02,80.75678687]
[1726898701945,0.2495611,146.03,146.02,79.3878452]
[1726898702147,0.2495611,146.03,146.02,56.7492452]
[1726898706138,0.2495611,146.03,146.02,58.11818103]
[1726898706716,0.2495611,146.07,146.06,56.4982652]
[1726898707945,0.2495611,146.07,146.06,43.776884]
[1726898708120,0.2495611,146.07,146.06,56.4982652]
[1726898708435,0.2495611,146.07,146.06,43.776884]
[1726898708643,0.2495611,146.07,146.06,56.4982652]
[1726898711716,0.2495611,146.07,146.06,56.7492452]
[1726898711917,0.2495611,146.07,146.06,44.027864]
[1726898712123,0.2495611,146.07,146.06,56.4982652]
[1726898712312,0.2495611,146.07,146.06,56.7492452]
[1726898712521,0.2495611,146.07,146.06,58.1178378]
[1726898714234,0.3468183,146.12,146.06,58.1178378]
[1726898714235,0.3468183,146.12,146.07,44.027864]
[1726898714448,0.3468183,146.12,146.11,12.7213812]
[1726898715912,0.3468183,146.12,146.1,12.7213812]
[1726898716124,0.3468183,146.12,146.11,25.14535913]
[1726898718442,0.3468183,146.12,146.11,23.776884]
[1726898720840,0.3468183,146.12,146.11,25.14535204]
[1726898722325,0.3468183,146.12,146.11,23.776884]
[1726898722645,0.3468183,146.12,146.11,25.14535977]
[1726898724939,0.3468183,146.12,146.11,23.776884]
[1726898725147,0.3468183,146.12,146.1,23.776884]
[1726898725529,0.3468183,146.12,146.11,1.36858631]
[1726898725726,0.3468183,146.12,146.11,25.14547031]
[1726898726759,0.3468183,146.12,146.11,23.776884]
[1726898733467,0.3468183,146.12,146.11,36.4982652]
[1726898733865,0.3468183,146.12,146.11,56.4982652]
[1726898738253,0.3468183,146.12,146.11,43.776884]
[1726898739459,0.3468183,146.12,146.11,45.14522573]
[1726898740670,0.3468183,146.12,146.11,57.86660693]